bitfinex-derivatives/quotes_SOLF0:USTF0_20230105
["timestamp","ask_amount","ask_price","bid_price","bid_amount"]
[1672907787663,7.63,13.135,13.128,2.79503475]
[1672907787870,7.64,13.133,13.128,2.79503475]
[1672907789653,10.0,13.132,13.128,2.79503475]
[1672907789869,10.0,13.132,13.126,2.8583641]
[1672907790395,7.57,13.128,13.126,2.8583641]
[1672907790604,7.57,13.128,13.126,2.79503475]
[1672907790813,7.57,13.128,13.122,0.06208972]
[1672907795433,7.57,13.132,13.123,7.64]
[1672907795641,7.63,13.133,13.125,7.57]
[1672907795850,7.63,13.133,13.126,10.0]
[1672907796277,7.49821946,13.133,13.126,10.0]
[1672907796594,7.49821946,13.133,13.127,2.79503475]
[1672907798062,10.0,13.138,13.127,2.79503475]
[1672907798268,10.0,13.133,13.128,0.06885463]
[1672907798484,15.17,13.132,13.128,0.06885463]
[1672907807624,15.3,13.129,13.128,0.06885463]
[1672907807835,15.3,13.129,13.127,2.79503475]
[1672907808046,15.3,13.132,13.124,0.06256612]
[1672907808993,15.3,13.132,13.124,2.85760087]
[1672907809201,10.0,13.131,13.124,2.85760087]
[1672907809515,15.3,13.13,13.124,2.85760087]
[1672907809725,10.0,13.129,13.124,0.06256612]
[1672907813932,25.3,13.129,13.124,0.06256612]
[1672907815614,15.3,13.129,13.124,0.06256612]
[1672907815826,10.0,13.13,13.124,0.06256612]
[1672907816354,15.3,13.131,13.124,0.06256612]
[1672907817509,10.0,13.13,13.124,0.06256612]
[1672907818985,15.3,13.131,13.124,0.06256612]
[1672907820239,10.0,13.13,13.124,0.06256612]
[1672907823285,17.65,13.13,13.124,0.06256612]
[1672907824226,7.65,13.13,13.124,0.06256612]
[1672907825387,7.65,13.13,13.124,10.06256612]
[1672907825596,7.56169076,13.13,13.124,10.06256612]
[1672907826011,7.66,13.133,13.125,10.45503475]
[1672907826227,7.66,13.133,13.126,10.0]
[1672907826542,7.66,13.133,13.126,12.79503475]
[1672907826861,7.66,13.133,13.127,2.79503475]
[1672907827808,7.66,13.135,13.127,10.45503475]
[1672907828018,7.66,13.135,13.128,10.0]
[1672907828225,7.66,13.135,13.128,12.79503475]
[1672907828540,7.66,13.135,13.129,2.79503475]
[1672907829383,7.66,13.14,13.132,7.66]
[1672907829589,7.66,13.14,13.133,10.0]
[1672907830013,7.66,13.14,13.134,2.79503475]
[1672907830328,7.66,13.136,13.134,2.79503475]
[1672907830747,7.66,13.136,13.13,0.06789795]
[1672907835904,7.66,13.138,13.13,7.72789795]
[1672907836527,7.66,13.138,13.132,10.0]
[1672907836845,7.66,13.138,13.133,2.79503475]
[1672907839472,7.48373491,13.138,13.133,2.79503475]
[1672907842629,7.65,13.141,13.133,10.45503475]
[1672907842833,80.67,13.155,13.134,10.0]
[1672907843048,7.66,13.15,13.14,7.72069907]
[1672907843259,7.66,13.15,13.14,7.72156606]
[1672907843573,7.66,13.15,13.141,12.79503475]
[1672907843789,7.59,13.151,13.143,7.66]
[1672907843996,7.59,13.151,13.144,10.0]
[1672907844415,7.59,13.151,13.145,2.79503475]
[1672907847780,7.66,13.146,13.145,2.79503475]
[1672907848412,7.66,13.146,13.142,2.79503475]
[1672907851041,7.66,13.148,13.142,2.79503475]
[1672907855039,7.49427752,13.148,13.142,2.79503475]
[1672907858496,7.49427752,13.148,13.142,2.64580927]
[1672907859023,15.2,13.149,13.142,2.64580927]
[1672907863869,15.27,13.151,13.142,2.64580927]
[1672907871008,15.2,13.156,13.146,15.14]
[1672907871223,15.2,13.156,13.147,10.0]
[1672907871437,15.2,13.156,13.147,12.64580927]
[1672907871861,15.2,13.156,13.148,2.64580927]
[1672907873331,15.09085349,13.156,13.148,2.64580927]
[1672907882478,15.2,13.153,13.148,2.64580927]
[1672907882692,10.0,13.152,13.148,2.64580927]
[1672907883108,15.2,13.153,13.148,2.64580927]
[1672907883313,15.2,13.153,13.146,0.06152414]
[1672907886582,15.2,13.155,13.146,10.06152414]
[1672907887106,15.2,13.155,13.147,2.64580927]
[1672907889838,15.2,13.149,13.147,2.64580927]
[1672907890156,10.0,13.148,13.146,0.06152414]
[1672907890365,15.15,13.147,13.142,0.06988727]
[1672907891930,15.27,13.149,13.142,0.06988727]
[1672907896251,15.19,13.147,13.142,0.06988727]
[1672907896464,15.27,13.144,13.142,0.06988727]
[1672907896776,15.27,13.144,13.141,2.793564]
[1672907896987,15.27,13.144,13.139,2.793564]
[1672907898029,15.15,13.142,13.132,25.14]
[1672907898347,10.0,13.136,13.133,10.0]
[1672907898772,10.0,13.136,13.134,2.7952613]
[1672907898982,15.27,13.137,13.134,2.7952613]
[1672907900561,15.27,13.137,13.131,0.06335419]
[1672907900760,0.06462073,13.14,13.131,0.06335419]
[1672907901085,15.15,13.137,13.131,0.06335419]
[1672907901396,10.0,13.136,13.131,0.06335419]
[1672907902342,15.15,13.137,13.131,0.06335419]
[1672907905183,15.15,13.139,13.131,0.06335419]
[1672907906122,15.15,13.139,13.131,2.85861549]
[1672907907284,15.27,13.137,13.131,2.85861549]
[1672907908330,15.27,13.135,13.131,2.85861549]
[1672907909281,15.27,13.135,13.131,0.06335419]
[1672907915165,15.16,13.133,13.131,0.06335419]
[1672907915376,10.0,13.132,13.127,2.86632317]
[1672907915791,15.16,13.133,13.127,2.86632317]
[1672907923461,15.16,13.131,13.127,2.317e-05]
[1672907923672,15.27,13.128,13.114,15.24]
[1672907923883,15.16,13.124,13.114,15.24]
[1672907924191,15.16,13.124,13.12,2.79715378]
[1672907924405,15.16,13.124,13.115,2.79715378]
[1672907924615,15.16,13.124,13.115,12.79715378]
[1672907924824,15.16,13.124,13.116,0.07115823]
[1672907925458,15.16,13.124,13.116,2.86831201]
[1672907925671,0.06275981,13.125,13.117,10.1]
[1672907926197,0.06275981,13.125,13.118,2.79715378]
[1672907928087,0.06275981,13.125,13.118,17.93715378]
[1672907928297,0.06275981,13.125,13.119,10.0]
[1672907928508,0.06275981,13.125,13.12,15.27]
[1672907928822,0.06275981,13.125,13.121,12.79715378]
[1672907929035,0.00075981,13.125,13.121,12.79715378]
[1672907929244,15.27,13.128,13.122,12.79715378]
[1672907929875,15.27,13.128,13.123,2.79715378]
[1672907930406,15.16,13.126,13.123,2.79715378]
[1672907930604,10.0,13.125,13.123,2.79715378]
[1672907931138,10.0,13.125,13.121,0.06288552]
[1672907933133,15.19,13.124,13.121,0.06288552]
[1672907933454,25.19,13.123,13.12,2.79715378]
[1672907933873,10.0,13.122,13.118,0.0629811]
[1672907934295,25.19,13.123,13.118,0.0629811]
[1672907935337,15.19,13.123,13.118,0.0629811]
[1672907935552,15.27,13.126,13.118,0.0629811]
[1672907935764,10.0,13.125,13.118,0.0629811]
[1672907936497,10.0,13.125,13.118,2.86013488]
[1672907938180,15.19,13.124,13.118,2.86013488]
[1672907938391,10.0,13.123,13.118,2.86013488]
[1672907938604,10.0,13.123,13.118,0.0629811]
[1672907939129,15.19,13.124,13.118,0.0629811]
[1672907943752,15.16,13.119,13.118,0.0629811]
[1672907943962,15.16,13.119,13.117,0.1]
[1672907944278,0.06524645,13.123,13.117,0.1]
[1672907944279,15.16,13.118,13.117,0.1]
[1672907944801,15.15,13.122,13.117,0.1]
[1672907945747,0.06524645,13.123,13.117,0.1]
[1672907946171,0.00024645,13.123,13.117,15.37]
[1672907946375,0.00024645,13.123,13.118,10.0]
[1672907946690,0.00024645,13.123,13.119,15.27]
[1672907946905,0.00024645,13.123,13.122,65.14]
[1672907947114,15.2,13.132,13.122,65.14]
[1672907947327,15.27,13.134,13.124,15.27]
[1672907947543,10.0,13.133,13.125,10.0]
[1672907947848,15.27,13.134,13.125,10.0]
[1672907948059,15.27,13.134,13.126,2.79715378]
[1672907951839,10.0,13.131,13.126,2.79715378]
[1672907952462,15.19,13.132,13.126,2.79715378]
[1672907953940,10.0,13.129,13.126,2.79715378]
[1672907954366,15.16,13.13,13.124,2.79715378]
[1672907957519,15.27,13.132,13.124,2.79715378]
[1672907957731,10.0,13.131,13.124,2.79715378]
[1672907958572,15.27,13.132,13.124,2.79715378]
[1672907960356,15.16,13.128,13.124,2.79715378]
[1672907960673,25.19,13.127,13.124,2.79715378]
[1672907960880,10.0,13.126,13.123,2.86174944]
[1672907961090,10.0,13.126,13.123,2.79715378]
[1672907961511,10.0,13.126,13.121,2.79715378]
[1672907962240,15.19,13.127,13.121,2.79715378]
[1672907963824,15.19,13.13,13.121,52.79715378]
[1672907964034,15.19,13.13,13.122,10.0]
[1672907964561,15.19,13.13,13.123,2.79715378]
[1672907966559,10.0,13.129,13.123,2.79715378]
[1672907966776,15.19,13.128,13.123,2.79715378]
[1672907966984,10.0,13.127,13.123,2.79715378]
[1672907967192,10.0,13.127,13.121,2.79715378]
[1672907969296,15.19,13.128,13.121,2.79715378]
[1672907971082,15.27,13.131,13.122,10.0]
[1672907971705,15.27,13.131,13.123,2.79715378]
[1672907972342,10.0,13.128,13.123,2.79715378]
[1672907972756,15.15,13.129,13.123,2.79715378]
[1672907974970,10.0,13.128,13.123,2.79715378]
[1672907975289,15.27,13.126,13.123,2.79715378]
[1672907975487,10.0,13.125,13.121,0.06178686]
[1672907976015,15.27,13.126,13.121,0.06178686]
[1672907977075,10.0,13.128,13.121,0.06178686]
[1672907977076,15.19,13.127,13.121,0.06178686]
[1672907977281,25.27,13.129,13.121,0.06178686]
[1672907977703,25.27,13.129,13.121,2.85894064]
[1672907979076,15.27,13.129,13.121,2.85894064]
[1672907980121,15.27,13.132,13.122,15.27]
[1672907980862,15.27,13.132,13.123,12.79715378]
[1672907981277,15.27,13.132,13.124,2.79715378]
[1672907981702,15.19200938,13.132,13.124,2.79715378]
[1672907981913,15.16,13.134,13.124,18.06715378]
[1672907982124,15.16,13.134,13.125,10.0]
[1672907982331,15.27,13.137,13.127,25.27]
[1672907982534,15.27,13.139,13.129,15.25]
[1672907982746,15.27,13.139,13.13,10.0]
[1672907983170,15.27,13.139,13.131,2.79715378]
[1672907983380,15.27,13.14,13.131,18.06715378]
[1672907983592,15.19,13.144,13.134,15.27]
[1672907983803,15.19,13.144,13.134,15.33930962]
[1672907984005,15.19,13.144,13.135,12.79715378]
[1672907984436,15.15,13.146,13.136,18.06715378]
[1672907984646,15.15,13.146,13.136,18.13197072]
[1672907984856,15.15,13.146,13.137,12.79715378]
[1672907985276,15.15,13.146,13.138,2.79715378]
[1672907985801,15.16,13.148,13.138,18.04715378]
[1672907986009,15.16,13.148,13.138,18.11146626]
[1672907986324,15.16,13.148,13.139,12.79715378]
[1672907986535,15.27,13.149,13.139,28.06715378]
[1672907986849,15.27,13.149,13.141,10.0]
[1672907987052,15.16,13.151,13.141,25.14]
[1672907987262,15.16,13.151,13.141,25.20013727]
[1672907987691,15.16,13.151,13.142,2.79715378]
[1672907988213,15.2,13.149,13.142,2.79715378]
[1672907988424,10.0,13.148,13.142,2.79715378]
[1672907989477,15.2,13.149,13.142,2.79715378]
[1672907991262,15.2,13.149,13.141,10.06013727]
[1672907995044,15.2,13.147,13.141,10.06013727]
[1672907995250,15.01401236,13.147,13.141,10.06013727]
[1672907997139,10.0,13.151,13.141,10.06013727]
[1672907997140,15.16,13.149,13.141,10.06013727]
[1672907999048,15.19,13.152,13.141,25.33013727]
[1672908001566,15.27,13.15,13.141,10.06013727]
[1672908007652,56.98,13.163,13.143,45.89]
[1672908007973,10.0,13.162,13.153,15.27]
[1672908008173,10.0,13.162,13.154,10.0]
[1672908008385,15.19,13.163,13.154,10.0]
[1672908008811,14.96055442,13.163,13.154,10.0]
[1672908009232,15.15,13.161,13.154,10.0]
[1672908009549,10.0,13.16,13.154,10.0]
[1672908009964,15.15,13.161,13.154,10.0]
[1672908011544,15.27,13.158,13.153,0.06248913]
[1672908011751,15.27,13.156,13.153,0.06248913]
[1672908011961,15.27,13.156,13.15,0.06188659]
[1672908012172,15.27,13.156,13.15,2.85390704]
[1672908012806,15.27,13.156,13.15,0.06188659]
[1672908013332,15.27,13.156,13.15,2.85391979]
[1672908013752,15.27,13.156,13.15,0.06188659]
[1672908015012,15.15,13.158,13.15,0.06188659]
[1672908015324,15.2,13.16,13.15,0.06188659]
[1672908015744,15.15,13.158,13.15,0.06188659]
[1672908020583,15.27,13.16,13.15,0.06188659]
[1672908023310,15.19,13.161,13.151,15.27]
[1672908023628,15.27,13.163,13.153,15.25]
[1672908023838,15.27,13.163,13.154,10.0]
[1672908024256,15.27,13.163,13.155,2.79064577]
[1672908024465,10.0,13.169,13.155,2.79064577]
[1672908024466,15.27,13.159,13.155,2.79064577]
[1672908024679,15.27,13.158,13.154,10.0]
[1672908025095,15.27,13.158,13.152,10.0]
[1672908026578,15.27,13.156,13.151,0.06073735]
[1672908026784,15.27,13.154,13.151,0.06073735]
[1672908027095,15.27,13.154,13.148,0.06054121]
[1672908027310,10.0,13.153,13.148,2.85239982]
[1672908027520,15.19,13.152,13.148,2.85239982]
[1672908028668,15.15,13.154,13.148,0.06054121]
[1672908028882,15.27,13.149,13.148,0.06054121]
[1672908029089,15.27,13.149,13.144,0.06292771]
[1672908029300,10.0,13.147,13.142,0.06777735]
[1672908029623,15.15,13.146,13.142,2.86110483]
[1672908030045,10.0,13.145,13.142,0.06777735]
[1672908030255,10.0,13.145,13.14,2.79332748]
[1672908032038,10.0,13.145,13.139,0.06309837]
[1672908032459,15.15,13.146,13.139,0.06309837]
[1672908033196,15.27,13.148,13.139,0.06309837]
[1672908033515,10.0,13.148,13.14,10.0]
[1672908033722,10.0,13.151,13.143,15.27]
[1672908034038,25.19,13.153,13.144,10.0]
[1672908034250,25.19,13.153,13.144,25.27]
[1672908034251,10.0,13.153,13.144,25.27]
[1672908034459,10.0,13.153,13.145,12.79332748]
[1672908034873,25.15,13.153,13.146,2.79332748]
[1672908035509,15.15,13.153,13.146,2.79332748]
[1672908038452,10.0,13.15,13.146,2.79332748]
[1672908038662,15.15,13.149,13.146,2.79332748]
[1672908038873,10.0,13.148,13.145,0.06526318]
[1672908039084,10.0,13.148,13.143,2.79332748]
[1672908040448,15.19,13.146,13.142,2.86168624]
[1672908040659,10.0,13.145,13.142,2.86168624]
[1672908040870,10.0,13.145,13.139,0.06142009]
[1672908042656,15.19,13.146,13.139,0.06142009]
[1672908048646,45.59,13.146,13.139,0.06142009]
[1672908048857,10.0,13.145,13.139,0.06142009]
[1672908049063,45.59,13.146,13.139,0.06142009]
[1672908049270,10.0,13.145,13.139,0.06142009]
[1672908049807,45.59,13.146,13.139,0.06142009]
[1672908050007,10.0,13.145,13.139,0.06142009]
[1672908050431,45.59,13.146,13.139,0.06142009]
[1672908050642,10.0,13.145,13.139,0.06142009]
[1672908052012,45.59,13.146,13.139,0.06142009]
[1672908052225,10.0,13.145,13.139,0.06142009]
[1672908053270,45.59,13.146,13.139,0.06142009]
[1672908053479,10.0,13.145,13.139,0.06142009]
[1672908054006,10.0,13.145,13.137,0.00334757]
[1672908054007,45.46,13.14,13.137,0.00334757]
[1672908054213,45.83,13.138,13.137,0.00334757]
[1672908054630,45.83,13.138,13.131,0.00334757]
[1672908054838,10.0,13.132,13.131,0.00334757]
[1672908055163,10.0,13.132,13.127,0.0616936]
[1672908055371,10.0,13.132,13.125,0.0642404]
[1672908055581,45.47,13.133,13.125,0.0642404]
[1672908055792,10.0,13.132,13.125,0.0642404]
[1672908056532,10.0,13.132,13.125,0.06089283]
[1672908056945,45.47,13.133,13.125,0.06089283]
[1672908057158,0.06059263,13.134,13.125,0.06089283]
[1672908057368,0.00059263,13.134,13.125,0.06089283]
[1672908059992,10.00059263,13.134,13.125,0.06089283]
[1672908065778,0.00059263,13.134,13.125,0.06089283]
[1672908076495,45.91,13.126,13.111,45.91]
[1672908076706,183.77,13.131,13.111,45.91]
[1672908076707,45.84,13.124,13.112,45.56]
[1672908076911,10.0,13.124,13.115,10.0]
[1672908077327,45.91,13.127,13.116,45.91]
[1672908077539,0.06859488,13.125,13.117,10.1]
[1672908077757,0.00059488,13.125,13.117,10.1]
[1672908080070,0.00059488,13.125,13.119,45.91]
[1672908080278,0.00059488,13.125,13.12,10.0]
[1672908082268,114.054,13.156,13.124,45.91]
[1672908082483,10.0,13.142,13.133,10.0]
[1672908083323,45.91,13.143,13.133,10.06093349]
[1672908088793,10.0,13.149,13.134,45.91]
[1672908089002,45.91,13.156,13.145,45.91]
[1672908089219,10.0,13.155,13.146,55.97258523]
[1672908089530,10.0,13.157,13.148,45.66]
[1672908089739,10.0,13.157,13.149,10.0]
[1672908090574,55.91,13.158,13.149,10.0]
[1672908091107,45.91,13.158,13.149,10.0]
[1672908091528,45.91,13.159,13.149,10.0]
[1672908091742,45.91,13.159,13.149,10.06277317]
[1672908092474,45.59,13.159,13.149,10.06277317]
[1672908092793,10.0,13.158,13.149,10.06277317]
[1672908092992,45.59,13.159,13.149,10.06277317]
[1672908093936,10.0,13.162,13.149,10.06277317]
[1672908093937,45.46,13.161,13.149,55.80277317]
[1672908094786,45.71,13.164,13.154,10.0]
[1672908094996,10.0,13.165,13.156,10.0]
[1672908095204,10.0,13.165,13.156,10.06449232]
[1672908095411,45.74,13.166,13.156,10.06449232]
[1672908095620,45.51655354,13.166,13.156,10.06449232]
[1672908097934,45.74,13.165,13.156,0.06449232]
[1672908098254,45.74,13.161,13.156,0.06375019]
[1672908101516,95.74,13.176,13.16,45.74]
[1672908101826,45.74,13.176,13.165,45.74]
[1672908102032,10.0,13.175,13.166,10.07074904]
[1672908102879,45.74,13.176,13.166,10.07074904]
[1672908103192,10.0,13.175,13.166,10.07074904]
[1672908103615,45.46,13.178,13.166,55.81074904]
[1672908103827,10.0,13.177,13.167,0.06058235]
[1672908104770,45.59,13.175,13.167,0.06058235]
[1672908105088,10.0,13.174,13.167,0.06058235]
[1672908107293,45.59,13.175,13.167,0.06058235]
[1672908108450,50.0,13.176,13.167,45.57058235]
[1672908108665,50.0,13.176,13.168,10.0]
[1672908108975,10.0,13.175,13.168,10.0]
[1672908109182,45.59,13.178,13.168,10.0]
[1672908109393,45.74,13.181,13.169,45.74]
[1672908109605,45.46,13.179,13.17,0.06960244]
[1672908109816,45.46,13.174,13.17,0.06960244]
[1672908110026,45.74,13.172,13.17,0.06960244]
[1672908110341,10.0,13.171,13.166,10.06372377]
[1672908110547,45.74,13.172,13.166,10.06372377]
[1672908110869,45.46,13.175,13.166,10.06372377]
[1672908112751,45.46,13.167,13.157,10.0]
[1672908112964,45.74,13.168,13.157,10.0]
[1672908113177,45.74,13.173,13.162,45.51]
[1672908113387,45.74,13.173,13.163,10.0]
[1672908113809,45.80774859,13.173,13.163,10.06881761]
[1672908114221,0.06774859,13.173,13.164,45.74]
[1672908114641,0.06774859,13.173,13.165,55.51]
[1672908114857,0.06774859,13.173,13.167,45.74]
[1672908115066,0.00074859,13.173,13.168,10.0]
[1672908120643,0.00074859,13.173,13.166,10.06616279]
[1672908120952,45.74074859,13.173,13.166,10.06616279]
[1672908121272,45.46,13.17,13.166,0.06616279]
[1672908123686,10.0,13.169,13.166,0.06616279]
[1672908123895,10.0,13.169,13.163,0.06873497]
[1672908124107,45.46,13.17,13.161,0.07018367]
[1672908124318,10.0,13.169,13.161,0.07018367]
[1672908125370,45.74,13.168,13.161,0.07018367]
[1672908125688,10.0,13.167,13.161,0.07018367]
[1672908126418,45.74,13.168,13.161,0.07018367]
[1672908126621,10.0,13.167,13.161,0.07018367]
[1672908127041,45.74,13.168,13.161,0.07018367]
[1672908127251,10.0,13.167,13.161,0.07018367]
[1672908129991,45.74,13.168,13.161,0.07018367]
[1672908130203,10.0,13.167,13.161,0.07018367]
[1672908131567,10.0,13.167,13.157,45.74]
[1672908131781,45.59,13.159,13.147,45.74]
[1672908132098,10.0,13.158,13.148,10.0]
[1672908132725,10.06443166,13.158,13.148,10.06778985]
[1672908132935,0.06443166,13.158,13.148,10.06778985]
[1672908133146,0.06443166,13.158,13.152,10.0]
[1672908133356,0.06443166,13.158,13.154,10.0]
[1672908139971,0.00443166,13.158,13.154,10.0]
[1672908140180,45.46,13.165,13.154,10.0]
[1672908140395,10.0,13.164,13.154,10.0]
[1672908140923,45.71,13.159,13.152,10.0]
[1672908141121,10.0,13.158,13.151,0.06146876]
[1672908141445,45.71,13.157,13.151,0.06146876]
[1672908141655,10.0,13.156,13.151,0.06146876]
[1672908142286,45.71,13.157,13.151,0.06146876]
[1672908143756,45.59,13.152,13.151,0.06146876]
[1672908143960,10.0,13.151,13.147,0.0609394]
[1672908144281,10.0,13.151,13.144,0.06772146]
[1672908145860,45.74,13.15,13.144,0.06772146]
[1672908146061,10.0,13.149,13.144,0.06772146]
[1672908146271,45.74,13.15,13.144,0.06772146]
[1672908146484,10.0,13.149,13.144,0.06772146]
[1672908147117,45.74,13.15,13.144,0.06772146]
[1672908147327,10.0,13.149,13.144,0.06772146]
[1672908147645,45.74,13.15,13.144,0.06772146]
[1672908147855,10.0,13.149,13.144,0.06772146]
[1672908148169,45.74,13.15,13.144,0.06772146]
[1672908148373,10.0,13.149,13.144,0.06772146]
[1672908149641,45.74,13.15,13.144,0.06772146]
[1672908149852,10.0,13.149,13.144,0.06772146]
[1672908151625,45.74,13.15,13.144,0.06772146]
[1672908151837,10.0,13.149,13.144,0.06772146]
[1672908153002,45.74,13.15,13.144,0.06772146]
[1672908153208,10.0,13.149,13.144,0.06772146]
[1672908156780,10.0,13.146,13.144,0.06772146]
[1672908156991,10.0,13.146,13.14,0.07128644]
[1672908164557,45.71,13.147,13.14,0.07128644]
[1672908164760,10.0,13.146,13.14,45.81128644]
[1672908165083,10.0,13.155,13.145,45.74]
[1672908165289,45.46,13.156,13.146,10.0]
[1672908166975,45.74,13.158,13.147,45.58]
[1672908167182,10.0,13.157,13.148,10.0616768]
[1672908168132,45.74,13.167,13.155,45.58]
[1672908168345,183.34,13.178,13.148,10.0616768]
[1672908168346,45.74,13.165,13.156,10.06792618]
[1672908168548,45.71,13.163,13.156,10.06290408]
[1672908168762,10.0,13.162,13.156,10.06290408]
[1672908170655,45.71,13.163,13.156,10.06290408]
[1672908171597,45.71,13.163,13.156,0.06290408]
[1672908171810,45.74,13.157,13.156,0.06290408]
[1672908172023,45.74,13.159,13.152,0.06943994]
[1672908172231,10.0,13.158,13.152,0.06943994]
[1672908172439,45.74,13.159,13.152,0.06943994]
[1672908172650,55.74,13.162,13.152,0.06943994]
[1672908172967,55.74,13.162,13.152,10.06943994]
[1672908173387,45.74,13.162,13.152,10.06943994]
[1672908176117,45.74,13.169,13.162,0.19173323]
[1672908176963,45.74,13.171,13.162,0.19173323]
[1672908177169,45.59,13.173,13.162,45.83489037]
[1672908177379,45.59,13.175,13.163,45.74]
[1672908177586,45.59,13.175,13.164,10.0]
[1672908177801,10.0,13.174,13.165,0.06220477]
[1672908178011,55.59,13.175,13.165,0.06220477]
[1672908178431,10.0,13.174,13.165,0.06220477]
[1672908178852,55.59,13.175,13.165,0.06220477]
[1672908179063,10.0,13.174,13.165,0.06220477]
[1672908179486,55.59,13.175,13.165,0.06220477]
[1672908179693,10.0,13.174,13.165,0.06220477]
[1672908180327,45.59,13.175,13.165,0.06220477]
[1672908180537,10.0,13.174,13.165,0.06220477]
[1672908181168,45.59,13.175,13.165,0.06220477]
[1672908186525,45.74,13.179,13.167,45.74]
[1672908186739,45.46,13.18,13.169,45.74]
[1672908186949,45.46,13.18,13.17,0.06380142]
[1672908187162,45.46,13.18,13.17,10.06380142]
[1672908187680,45.59,13.182,13.171,45.74]
[1672908187898,55.74,13.184,13.172,45.80950286]
[1672908188312,55.74,13.184,13.173,10.0]
[1672908188838,45.46,13.181,13.173,10.0]
[1672908189047,10.0,13.18,13.173,10.0]
[1672908189575,45.46,13.181,13.173,10.0]
[1672908191146,45.74,13.183,13.173,10.0]
[1672908191568,10.0,13.186,13.173,10.0]
[1672908191569,45.74,13.188,13.176,45.74]
[1672908191782,45.74,13.188,13.177,10.06421179]
[1672908193250,45.57773024,13.188,13.177,10.06421179]
[1672908194303,45.74,13.19,13.179,45.58]
[1672908194517,45.59,13.192,13.18,55.80741962]
[1672908194723,45.74,13.193,13.182,45.74]
[1672908194934,45.74,13.193,13.183,0.06934116]
[1672908195145,45.46,13.195,13.184,45.58]
[1672908195561,45.46,13.195,13.185,10.0]
[1672908196091,50.0,13.196,13.185,55.74]
[1672908196295,50.0,13.196,13.186,0.07128719]
[1672908196506,13.93107517,13.195,13.186,0.07128719]
[1672908196823,45.74,13.199,13.187,45.74]
[1672908197030,10.0,13.198,13.188,10.06249006]
[1672908197556,45.74,13.194,13.188,10.06249006]
[1672908197771,10.0,13.193,13.188,10.06249006]
[1672908197985,45.74,13.194,13.188,10.06249006]
[1672908198295,45.59,13.195,13.188,10.06249006]
[1672908201026,45.74,13.192,13.188,0.06249006]
[1672908201442,45.46,13.191,13.188,9.006e-05]
[1672908201657,45.74,13.189,13.183,10.0]
[1672908202701,45.71,13.19,13.183,10.0]
[1672908205229,55.74,13.189,13.181,0.07058341]
[1672908205445,45.59,13.187,13.181,0.07058341]
[1672908205655,10.0,13.186,13.181,0.07058341]
[1672908205866,45.59,13.187,13.181,0.07058341]
[1672908207436,10.0,13.186,13.181,0.07058341]
[1672908207650,45.46,13.185,13.181,8.341e-05]
[1672908207966,45.71,13.183,13.181,8.341e-05]
[1672908208178,10.0,13.182,13.174,10.0]
[1672908208594,45.71,13.183,13.174,10.0]
[1672908208820,45.71,13.183,13.175,0.0709819]
[1672908211427,10.0,13.182,13.175,0.0709819]
[1672908212695,45.71,13.183,13.175,0.0709819]
[1672908212902,45.71,13.18,13.175,0.0709819]
[1672908213111,45.74,13.178,13.175,0.0709819]